[Event "Chessable Masters - Torneo preliminare"]
[White "Henriquez Villagra, Cristobal"]
[Black "Wei, Yi"]
[WhiteFideId "3409350"]
[BlackFideId "8603405"]
[WhiteElo "2574"]
[BlackElo "2716"]
[Result "0-1"]
[Round "2"]
[TimeControl "600+2"]
[Date "2023.03.13"]
[WhiteClock "0:00:31"]
[BlackClock "0:03:59"]

1. d4 {[%clk 0:10:01]}  Nf6 {[%clk 0:09:53]} 2. Nf3 {[%clk 0:10:02]}  g6 {[%clk 0:09:49]} 3. g3 {[%clk 0:09:50]}  Bg7 {[%clk 0:09:48]} 4. Bg2 {[%clk 0:09:51]}  O-O {[%clk 0:09:46]} 5. O-O {[%clk 0:09:53]}  d6 {[%clk 0:09:43]} 6. c4 {[%clk 0:09:52]}  Bf5 {[%clk 0:09:44]} 7. Nc3 {[%clk 0:08:32]}  Ne4 {[%clk 0:09:44]} 8. Nh4 {[%clk 0:08:31]}  Nxc3 {[%clk 0:09:45]} 9. bxc3 {[%clk 0:08:33]}  Bc8 {[%clk 0:09:46]} 10. Qb3 {[%clk 0:08:24]}  Nc6 {[%clk 0:09:36]} 11. Be3 {[%clk 0:07:51]}  e5 {[%clk 0:08:42]} 12. Rad1 {[%clk 0:07:29]}  Qe8 {[%clk 0:08:40]} 13. Nf3 {[%clk 0:05:26]}  b6 {[%clk 0:08:33]} 14. c5 {[%clk 0:05:16]}  Ba6 {[%clk 0:08:32]} 15. Qc2 {[%clk 0:04:26]}  Rd8 {[%clk 0:08:01]} 16. d5 {[%clk 0:03:48]}  Ne7 {[%clk 0:07:28]} 17. cxd6 {[%clk 0:03:48]}  cxd6 {[%clk 0:07:28]} 18. c4 {[%clk 0:03:50]}  Nf5 {[%clk 0:07:15]} 19. Bh3 {[%clk 0:03:04]}  Nxe3 {[%clk 0:06:55]} 20. fxe3 {[%clk 0:03:06]}  Bh6 {[%clk 0:06:57]} 21. e4 {[%clk 0:02:59]}  Rb8 {[%clk 0:06:16]} 22. Kg2 {[%clk 0:02:53]}  Rb7 {[%clk 0:06:15]} 23. Qb3 {[%clk 0:02:45]}  Re7 {[%clk 0:05:28]} 24. Rf2 {[%clk 0:02:36]}  Qd8 {[%clk 0:05:07]} 25. Qa4 {[%clk 0:02:14]}  Bb7 {[%clk 0:05:06]} 26. Qb3 {[%clk 0:02:10]}  Qc7 {[%clk 0:04:55]} 27. e3 {[%clk 0:01:47]}  Qc5 {[%clk 0:04:55]} 28. Rd3 {[%clk 0:01:47]}  a5 {[%clk 0:04:22]} 29. Nd2 {[%clk 0:01:40]}  Ba6 {[%clk 0:04:20]} 30. Rf1 {[%clk 0:01:26]}  b5 {[%clk 0:04:17]} 31. Rc1 {[%clk 0:01:10]}  Rc7 {[%clk 0:04:03]} 32. cxb5 {[%clk 0:00:49]}  Qxc1 {[%clk 0:04:04]} 33. bxa6 {[%clk 0:00:51]}  Rc2 {[%clk 0:04:04]} 34. Bd7 {[%clk 0:00:31]}  Rxd2+ {[%clk 0:03:59]} 0-1


[Site "Internet"]

[Event "Chessable Masters - Torneo preliminare"]
[White "Christiansen, Johan-Sebastian"]
[Black "Bortnyk, Olexandr"]
[WhiteFideId "1512668"]
[BlackFideId "14120828"]
[WhiteElo "2481"]
[BlackElo "2643"]
[Result "0-1"]
[Round "2"]
[TimeControl "600+2"]
[Date "2023.03.13"]
[WhiteClock "0:06:09"]
[BlackClock "0:03:38"]

1. e4 {[%clk 0:10:01]}  Nf6 {[%clk 0:09:58]} 2. e5 {[%clk 0:09:57]}  Nd5 {[%clk 0:09:57]} 3. d4 {[%clk 0:09:58]}  d6 {[%clk 0:09:58]} 4. Nf3 {[%clk 0:09:59]}  dxe5 {[%clk 0:10:00]} 5. Nxe5 {[%clk 0:10:00]}  c6 {[%clk 0:10:01]} 6. Be2 {[%clk 0:10:00]}  Bf5 {[%clk 0:10:02]} 7. g4 {[%clk 0:09:57]}  Be6 {[%clk 0:10:03]} 8. c4 {[%clk 0:09:58]}  Nb6 {[%clk 0:10:04]} 9. a4 {[%clk 0:09:59]}  f6 {[%clk 0:10:00]} 10. a5 {[%clk 0:10:00]}  fxe5 {[%clk 0:09:41]} 11. axb6 {[%clk 0:10:01]}  Qxb6 {[%clk 0:09:37]} 12. dxe5 {[%clk 0:09:33]}  Nd7 {[%clk 0:09:28]} 13. Nc3 {[%clk 0:09:31]}  Nxe5 {[%clk 0:09:10]} 14. Be3 {[%clk 0:08:49]}  Qc7 {[%clk 0:07:30]} 15. Qd4 {[%clk 0:08:50]}  g5 {[%clk 0:06:23]} 16. Bxg5 {[%clk 0:08:45]}  Bg7 {[%clk 0:06:19]} 17. Qe4 {[%clk 0:08:46]}  O-O {[%clk 0:05:49]} 18. f4 {[%clk 0:08:33]}  h6 {[%clk 0:05:43]} 19. f5 {[%clk 0:07:31]}  hxg5 {[%clk 0:05:19]} 20. fxe6 {[%clk 0:07:33]}  Rad8 {[%clk 0:04:34]} 21. Rf1 {[%clk 0:07:28]}  Rxf1+ {[%clk 0:04:28]} 22. Kxf1 {[%clk 0:07:28]}  Qb6 {[%clk 0:04:26]} 23. Rd1 {[%clk 0:07:22]}  Rf8+ {[%clk 0:04:24]} 24. Kg2 {[%clk 0:07:24]}  Qxb2 {[%clk 0:04:14]} 25. Na4 {[%clk 0:07:17]}  Qb4 {[%clk 0:03:42]} 26. Qc2 {[%clk 0:06:47]}  b5 {[%clk 0:03:42]} 27. cxb5 {[%clk 0:06:43]}  Nxg4 {[%clk 0:03:39]} 28. Bxg4 {[%clk 0:06:06]}  Qxg4+ {[%clk 0:03:37]} 29. Kh1 {[%clk 0:06:08]}  Qf3+ {[%clk 0:03:38]} 30. Kg1 {[%clk 0:06:09]}  Bd4+ {[%clk 0:03:38]} 0-1


[Site "Internet"]

[Event "Chessable Masters - Torneo preliminare"]
[White "Nigmatov, Ortik"]
[Black "Dubov, Daniil"]
[WhiteFideId "14202131"]
[BlackFideId "24126055"]
[WhiteElo "2344"]
[BlackElo "2727"]
[Result "0-1"]
[Round "2"]
[TimeControl "600+2"]
[Date "2023.03.13"]
[WhiteClock "0:00:04"]
[BlackClock "0:01:54"]

1. e4 {[%clk 0:10:01]}  c5 {[%clk 0:09:58]} 2. Nf3 {[%clk 0:10:01]}  e6 {[%clk 0:09:59]} 3. d4 {[%clk 0:10:02]}  cxd4 {[%clk 0:10:00]} 4. Nxd4 {[%clk 0:10:04]}  Nf6 {[%clk 0:10:02]} 5. Nc3 {[%clk 0:10:04]}  Nc6 {[%clk 0:10:03]} 6. Ndb5 {[%clk 0:10:02]}  d6 {[%clk 0:10:00]} 7. Bf4 {[%clk 0:10:01]}  e5 {[%clk 0:10:01]} 8. Bg5 {[%clk 0:10:03]}  a6 {[%clk 0:10:03]} 9. Na3 {[%clk 0:10:03]}  b5 {[%clk 0:10:04]} 10. Nd5 {[%clk 0:10:04]}  Be7 {[%clk 0:10:05]} 11. Bxf6 {[%clk 0:09:59]}  Bxf6 {[%clk 0:10:06]} 12. c3 {[%clk 0:08:53]}  Rb8 {[%clk 0:10:06]} 13. Nc2 {[%clk 0:08:52]}  Bg5 {[%clk 0:10:07]} 14. a4 {[%clk 0:08:51]}  bxa4 {[%clk 0:10:07]} 15. Ncb4 {[%clk 0:08:53]}  Nxb4 {[%clk 0:10:08]} 16. cxb4 {[%clk 0:08:52]}  O-O {[%clk 0:10:09]} 17. Bc4 {[%clk 0:07:55]}  Bd7 {[%clk 0:09:57]} 18. Rxa4 {[%clk 0:06:06]}  Bxa4 {[%clk 0:09:53]} 19. Qxa4 {[%clk 0:06:08]}  Kh8 {[%clk 0:09:45]} 20. O-O {[%clk 0:06:05]}  f5 {[%clk 0:09:44]} 21. exf5 {[%clk 0:06:00]}  Rxf5 {[%clk 0:09:46]} 22. Qxa6 {[%clk 0:05:17]}  Ra8 {[%clk 0:09:05]} 23. Qb7 {[%clk 0:05:10]}  e4 {[%clk 0:08:42]} 24. b5 {[%clk 0:04:36]}  e3 {[%clk 0:07:27]} 25. fxe3 {[%clk 0:04:18]}  Rxf1+ {[%clk 0:07:26]} 26. Bxf1 {[%clk 0:04:20]}  Qf8 {[%clk 0:07:07]} 27. Qc6 {[%clk 0:02:12]}  Rc8 {[%clk 0:06:53]} 28. Qa6 {[%clk 0:02:13]}  Rc5 {[%clk 0:05:44]} 29. Nf4 {[%clk 0:02:12]}  Qe8 {[%clk 0:04:45]} 30. b6 {[%clk 0:01:29]}  Rc6 {[%clk 0:03:54]} 31. Qb5 {[%clk 0:00:06]}  Bxf4 {[%clk 0:02:43]} 32. exf4 {[%clk 0:00:08]}  Qe3+ {[%clk 0:02:44]} 33. Kh1 {[%clk 0:00:06]}  Qxb6 {[%clk 0:02:09]} 34. Qf5 {[%clk 0:00:06]}  Qb8 {[%clk 0:02:02]} 35. h3 {[%clk 0:00:04]}  Rc1 {[%clk 0:01:54]} 0-1


[Site "Internet"]

[Event "Chessable Masters - Torneo preliminare"]
[White "Mamedyarov, Shakhriyar"]
[Black "Preotu, Razvan"]
[WhiteFideId "13401319"]
[BlackFideId "2613280"]
[WhiteElo "2703"]
[BlackElo "2532"]
[Result "1-0"]
[Round "2"]
[TimeControl "600+2"]
[Date "2023.03.13"]
[WhiteClock "0:06:44"]
[BlackClock "0:01:12"]

1. d4 {[%clk 0:10:01]}  Nf6 {[%clk 0:09:57]} 2. c4 {[%clk 0:10:01]}  g6 {[%clk 0:09:58]} 3. Nc3 {[%clk 0:10:01]}  d5 {[%clk 0:09:59]} 4. Nf3 {[%clk 0:10:02]}  Bg7 {[%clk 0:09:59]} 5. e3 {[%clk 0:10:03]}  O-O {[%clk 0:09:59]} 6. cxd5 {[%clk 0:10:05]}  Nxd5 {[%clk 0:09:59]} 7. Bc4 {[%clk 0:10:06]}  Nb6 {[%clk 0:09:51]} 8. Bb3 {[%clk 0:10:07]}  c5 {[%clk 0:09:52]} 9. O-O {[%clk 0:10:07]}  cxd4 {[%clk 0:09:49]} 10. exd4 {[%clk 0:10:09]}  Nc6 {[%clk 0:09:49]} 11. d5 {[%clk 0:10:04]}  Na5 {[%clk 0:09:49]} 12. Re1 {[%clk 0:09:40]}  Bg4 {[%clk 0:09:47]} 13. h3 {[%clk 0:09:38]}  Bxf3 {[%clk 0:09:46]} 14. Qxf3 {[%clk 0:09:40]}  Re8 {[%clk 0:09:10]} 15. Rd1 {[%clk 0:09:23]}  Nxb3 {[%clk 0:07:59]} 16. axb3 {[%clk 0:09:23]}  Nc8 {[%clk 0:08:00]} 17. Be3 {[%clk 0:08:57]}  Nd6 {[%clk 0:07:05]} 18. Rxa7 {[%clk 0:08:32]}  Rxa7 {[%clk 0:07:01]} 19. Bxa7 {[%clk 0:08:34]}  Qa5 {[%clk 0:06:17]} 20. Qe3 {[%clk 0:08:25]}  Ra8 {[%clk 0:06:01]} 21. Bb6 {[%clk 0:08:18]}  Qa6 {[%clk 0:04:42]} 22. Bc5 {[%clk 0:08:09]}  Rc8 {[%clk 0:04:31]} 23. g4 {[%clk 0:07:47]}  b6 {[%clk 0:02:48]} 24. Bb4 {[%clk 0:07:43]}  Qb7 {[%clk 0:02:13]} 25. Na4 {[%clk 0:07:30]}  Rc2 {[%clk 0:01:47]} 26. Qxb6 {[%clk 0:07:02]}  Qxb6 {[%clk 0:01:35]} 27. Nxb6 {[%clk 0:07:04]}  Rxb2 {[%clk 0:01:36]} 28. Bxd6 {[%clk 0:07:00]}  exd6 {[%clk 0:01:38]} 29. Rd3 {[%clk 0:07:01]}  Kf8 {[%clk 0:01:25]} 30. Kg2 {[%clk 0:06:42]}  Ke7 {[%clk 0:01:15]} 31. Re3+ {[%clk 0:06:42]}  Kd8 {[%clk 0:01:12]} 32. Nc4 {[%clk 0:06:44]} 1-0


[Site "Internet"]

[Event "Chessable Masters - Torneo preliminare"]
[White "Pranav, V"]
[Black "Krzyzanowski, Marcin"]
[WhiteFideId "25060783"]
[BlackFideId "1132199"]
[WhiteElo "2462"]
[BlackElo "2435"]
[Result "1-0"]
[Round "2"]
[TimeControl "600+2"]
[Date "2023.03.13"]
[WhiteClock "0:00:15"]
[BlackClock "0:00:07"]

1. e4 {[%clk 0:10:00]}  c5 {[%clk 0:09:59]} 2. Nf3 {[%clk 0:10:01]}  Nc6 {[%clk 0:09:58]} 3. Bb5 {[%clk 0:10:00]}  g6 {[%clk 0:09:55]} 4. O-O {[%clk 0:09:58]}  Bg7 {[%clk 0:09:56]} 5. c3 {[%clk 0:09:55]}  Nf6 {[%clk 0:09:53]} 6. Re1 {[%clk 0:09:47]}  O-O {[%clk 0:09:54]} 7. h3 {[%clk 0:09:46]}  Qb6 {[%clk 0:09:49]} 8. Bf1 {[%clk 0:09:38]}  d6 {[%clk 0:09:14]} 9. Na3 {[%clk 0:09:34]}  e5 {[%clk 0:09:02]} 10. Nc4 {[%clk 0:09:24]}  Qd8 {[%clk 0:08:56]} 11. a4 {[%clk 0:09:23]}  Be6 {[%clk 0:08:54]} 12. d3 {[%clk 0:09:20]}  h6 {[%clk 0:08:52]} 13. Bd2 {[%clk 0:08:22]}  Re8 {[%clk 0:07:48]} 14. b4 {[%clk 0:08:11]}  b6 {[%clk 0:07:41]} 15. Ne3 {[%clk 0:08:05]}  cxb4 {[%clk 0:07:23]} 16. cxb4 {[%clk 0:08:04]}  d5 {[%clk 0:07:25]} 17. exd5 {[%clk 0:06:44]}  Nxd5 {[%clk 0:07:26]} 18. b5 {[%clk 0:06:44]}  Nxe3 {[%clk 0:06:17]} 19. Rxe3 {[%clk 0:06:15]}  Nd4 {[%clk 0:05:58]} 20. Nxd4 {[%clk 0:06:04]}  Qxd4 {[%clk 0:05:50]} 21. Rc1 {[%clk 0:05:40]}  Rac8 {[%clk 0:05:43]} 22. Re4 {[%clk 0:05:26]}  Qb2 {[%clk 0:05:12]} 23. Rb1 {[%clk 0:04:27]}  Qc2 {[%clk 0:04:54]} 24. Qe1 {[%clk 0:04:27]}  f5 {[%clk 0:04:33]} 25. Reb4 {[%clk 0:04:22]}  Bf7 {[%clk 0:04:11]} 26. h4 {[%clk 0:03:47]}  Qa2 {[%clk 0:03:41]} 27. Bc3 {[%clk 0:03:23]}  Qd5 {[%clk 0:03:18]} 28. Rc4 {[%clk 0:03:16]}  Qd8 {[%clk 0:03:00]} 29. Rxc8 {[%clk 0:03:08]}  Qxc8 {[%clk 0:03:02]} 30. Rc1 {[%clk 0:03:05]}  Qd8 {[%clk 0:03:02]} 31. g3 {[%clk 0:03:00]}  Bd5 {[%clk 0:02:58]} 32. Qe2 {[%clk 0:02:46]}  Bb7 {[%clk 0:02:54]} 33. Qa2+ {[%clk 0:02:40]}  Kh7 {[%clk 0:02:53]} 34. h5 {[%clk 0:02:23]}  gxh5 {[%clk 0:02:37]} 35. Qf7 {[%clk 0:02:22]}  Qd5 {[%clk 0:02:29]} 36. Qxf5+ {[%clk 0:02:23]}  Kh8 {[%clk 0:02:20]} 37. Qxh5 {[%clk 0:02:23]}  Rf8 {[%clk 0:02:12]} 38. Bd2 {[%clk 0:02:15]}  Rf5 {[%clk 0:02:00]} 39. Qh4 {[%clk 0:02:10]}  Qf3 {[%clk 0:01:57]} 40. g4 {[%clk 0:01:51]}  Rf6 {[%clk 0:01:19]} 41. Be3 {[%clk 0:01:27]}  Rg6 {[%clk 0:01:01]} 42. g5 {[%clk 0:01:28]}  Bf6 {[%clk 0:00:59]} 43. Qh3 {[%clk 0:00:53]}  Bxg5 {[%clk 0:00:48]} 44. Qxf3 {[%clk 0:00:54]}  Bxf3 {[%clk 0:00:26]} 45. Kh2 {[%clk 0:00:55]}  Bf4+ {[%clk 0:00:22]} 46. Bxf4 {[%clk 0:00:56]}  exf4 {[%clk 0:00:24]} 47. Bh3 {[%clk 0:00:36]}  Rd6 {[%clk 0:00:25]} 48. Rc4 {[%clk 0:00:24]}  Rxd3 {[%clk 0:00:25]} 49. Rxf4 {[%clk 0:00:25]}  Kg7 {[%clk 0:00:23]} 50. Bf5 {[%clk 0:00:25]}  Ra3 {[%clk 0:00:21]} 51. Be6 {[%clk 0:00:23]}  Bd1 {[%clk 0:00:18]} 52. Rf7+ {[%clk 0:00:23]}  Kg6 {[%clk 0:00:18]} 53. Rxa7 {[%clk 0:00:24]}  Rxa4 {[%clk 0:00:09]} 54. Rb7 {[%clk 0:00:24]}  Kg5 {[%clk 0:00:07]} 55. Rxb6 {[%clk 0:00:22]}  Bf3 {[%clk 0:00:08]} 56. Rb8 {[%clk 0:00:18]}  h5 {[%clk 0:00:09]} 57. Rg8+ {[%clk 0:00:09]}  Kf6 {[%clk 0:00:10]} 58. Bb3 {[%clk 0:00:09]}  Rh4+ {[%clk 0:00:09]} 59. Kg3 {[%clk 0:00:11]}  Rg4+ {[%clk 0:00:03]} 60. Kxf3 {[%clk 0:00:12]}  Rb4 {[%clk 0:00:03]} 61. Bc2 {[%clk 0:00:10]}  Rxb5 {[%clk 0:00:04]} 62. Rg6+ {[%clk 0:00:11]}  Kf7 {[%clk 0:00:04]} 63. Rh6 {[%clk 0:00:12]}  Rc5 {[%clk 0:00:05]} 64. Be4 {[%clk 0:00:13]}  Kg7 {[%clk 0:00:06]} 65. Rh7+ {[%clk 0:00:14]}  Kf6 {[%clk 0:00:07]} 66. Kf4 {[%clk 0:00:13]}  Ra5 {[%clk 0:00:06]} 67. f3 {[%clk 0:00:15]}  Rc5 {[%clk 0:00:07]} 68. Rh6+ {[%clk 0:00:13]}  Kg7 {[%clk 0:00:07]} 69. Rd6 {[%clk 0:00:15]}  Ra5 {[%clk 0:00:07]} 70. Rd5 {[%clk 0:00:15]} 1-0


[Site "Internet"]

[Event "Chessable Masters - Torneo preliminare"]
[White "Talibov, Shiroghlan"]
[Black "Esipenko, Andrey"]
[WhiteFideId "13429078"]
[BlackFideId "24175439"]
[WhiteElo "2247"]
[BlackElo "2682"]
[Result "1/2-1/2"]
[Round "2"]
[TimeControl "600+2"]
[Date "2023.03.13"]
[WhiteClock "0:00:22"]
[BlackClock "0:00:11"]

1. e4 {[%clk 0:10:01]}  e5 {[%clk 0:09:59]} 2. Nf3 {[%clk 0:09:59]}  Nc6 {[%clk 0:10:01]} 3. Bc4 {[%clk 0:09:57]}  Nf6 {[%clk 0:10:01]} 4. d3 {[%clk 0:09:57]}  Bc5 {[%clk 0:10:02]} 5. O-O {[%clk 0:09:54]}  O-O {[%clk 0:10:02]} 6. c3 {[%clk 0:09:56]}  d6 {[%clk 0:10:02]} 7. Nbd2 {[%clk 0:09:45]}  a5 {[%clk 0:10:01]} 8. Re1 {[%clk 0:09:41]}  h6 {[%clk 0:09:49]} 9. Nf1 {[%clk 0:09:35]}  Be6 {[%clk 0:09:48]} 10. Bb5 {[%clk 0:09:34]}  Ba7 {[%clk 0:09:48]} 11. Be3 {[%clk 0:09:27]}  Bxe3 {[%clk 0:09:43]} 12. Nxe3 {[%clk 0:09:26]}  Ne7 {[%clk 0:09:45]} 13. Ba4 {[%clk 0:09:17]}  Ng6 {[%clk 0:09:44]} 14. Bc2 {[%clk 0:09:07]}  c6 {[%clk 0:09:39]} 15. d4 {[%clk 0:09:07]}  b5 {[%clk 0:09:23]} 16. a3 {[%clk 0:09:07]}  Qc7 {[%clk 0:09:21]} 17. b4 {[%clk 0:08:37]}  Rfe8 {[%clk 0:09:12]} 18. Qd2 {[%clk 0:08:26]}  axb4 {[%clk 0:08:27]} 19. axb4 {[%clk 0:08:28]}  Qb7 {[%clk 0:08:23]} 20. Nf5 {[%clk 0:08:19]}  Rxa1 {[%clk 0:08:05]} 21. Rxa1 {[%clk 0:08:17]}  Bxf5 {[%clk 0:08:04]} 22. exf5 {[%clk 0:08:19]}  Nf4 {[%clk 0:08:05]} 23. Re1 {[%clk 0:07:51]}  Qc7 {[%clk 0:08:02]} 24. g3 {[%clk 0:07:34]}  N4d5 {[%clk 0:08:01]} 25. dxe5 {[%clk 0:06:51]}  dxe5 {[%clk 0:08:00]} 26. Bb3 {[%clk 0:06:34]}  e4 {[%clk 0:07:25]} 27. Nd4 {[%clk 0:06:33]}  Re5 {[%clk 0:07:11]} 28. c4 {[%clk 0:06:11]}  bxc4 {[%clk 0:06:01]} 29. Bxc4 {[%clk 0:06:13]}  Qd6 {[%clk 0:05:28]} 30. Nc2 {[%clk 0:05:00]}  Qe7 {[%clk 0:05:27]} 31. Bxd5 {[%clk 0:04:13]}  Rxd5 {[%clk 0:04:33]} 32. Qc3 {[%clk 0:04:10]}  Qd6 {[%clk 0:04:11]} 33. Ne3 {[%clk 0:03:13]}  Rd3 {[%clk 0:04:08]} 34. Qc4 {[%clk 0:03:07]}  Rd4 {[%clk 0:02:58]} 35. Qc5 {[%clk 0:02:54]}  Qxc5 {[%clk 0:02:47]} 36. bxc5 {[%clk 0:02:56]}  Nd7 {[%clk 0:02:49]} 37. Ra1 {[%clk 0:02:43]}  Nxc5 {[%clk 0:02:49]} 38. Rc1 {[%clk 0:02:38]}  Nd3 {[%clk 0:02:22]} 39. Rxc6 {[%clk 0:02:37]}  Ra4 {[%clk 0:02:23]} 40. Rc2 {[%clk 0:01:35]}  Ra1+ {[%clk 0:02:17]} 41. Nf1 {[%clk 0:01:36]}  Kf8 {[%clk 0:01:45]} 42. Re2 {[%clk 0:01:31]}  Ra4 {[%clk 0:01:08]} 43. Kg2 {[%clk 0:01:20]}  Ke7 {[%clk 0:00:56]} 44. Nd2 {[%clk 0:01:16]}  Ra2 {[%clk 0:00:56]} 45. Kf1 {[%clk 0:01:06]}  Nc5 {[%clk 0:00:53]} 46. f3 {[%clk 0:00:57]}  e3 {[%clk 0:00:51]} 47. Nc4 {[%clk 0:00:42]}  Rxe2 {[%clk 0:00:24]} 48. Kxe2 {[%clk 0:00:44]}  Kf6 {[%clk 0:00:25]} 49. Nxe3 {[%clk 0:00:45]}  Ke5 {[%clk 0:00:24]} 50. Kd2 {[%clk 0:00:41]}  h5 {[%clk 0:00:20]} 51. Ke2 {[%clk 0:00:40]}  Nb7 {[%clk 0:00:20]} 52. Kd3 {[%clk 0:00:34]}  Nd6 {[%clk 0:00:21]} 53. f4+ {[%clk 0:00:12]}  Kf6 {[%clk 0:00:21]} 54. h3 {[%clk 0:00:13]}  Nxf5 {[%clk 0:00:21]} 55. Nxf5 {[%clk 0:00:15]}  Kxf5 {[%clk 0:00:22]} 56. Ke3 {[%clk 0:00:17]}  g5 {[%clk 0:00:13]} 57. fxg5 {[%clk 0:00:16]}  Kxg5 {[%clk 0:00:15]} 58. Kf3 {[%clk 0:00:14]}  h4 {[%clk 0:00:11]} 59. gxh4+ {[%clk 0:00:15]}  Kxh4 {[%clk 0:00:12]} 60. Kf4 {[%clk 0:00:16]}  Kxh3 {[%clk 0:00:12]} 61. Kf5 {[%clk 0:00:18]}  Kg3 {[%clk 0:00:12]} 62. Kf6 {[%clk 0:00:20]}  Kg4 {[%clk 0:00:11]} 63. Kxf7 {[%clk 0:00:22]} 1/2-1/2


[Site "Internet"]

[Event "Chessable Masters - Torneo preliminare"]
[White "Lobanov, Sergei"]
[Black "Grischuk, Alexander"]
[WhiteFideId "24183750"]
[BlackFideId "4126025"]
[WhiteElo "2436"]
[BlackElo "2731"]
[Result "1/2-1/2"]
[Round "2"]
[TimeControl "600+2"]
[Date "2023.03.13"]
[WhiteClock "0:00:22"]
[BlackClock "0:00:22"]

1. d4 {[%clk 0:09:53]}  Nf6 {[%clk 0:08:35]} 2. c4 {[%clk 0:09:53]}  e6 {[%clk 0:08:34]} 3. Nc3 {[%clk 0:09:54]}  Bb4 {[%clk 0:08:35]} 4. e3 {[%clk 0:09:55]}  O-O {[%clk 0:08:35]} 5. Bd3 {[%clk 0:09:56]}  d5 {[%clk 0:08:36]} 6. a3 {[%clk 0:09:54]}  Bxc3+ {[%clk 0:08:37]} 7. bxc3 {[%clk 0:09:56]}  dxc4 {[%clk 0:08:38]} 8. Bxc4 {[%clk 0:09:58]}  c5 {[%clk 0:08:39]} 9. Ne2 {[%clk 0:09:56]}  Qc7 {[%clk 0:08:40]} 10. Bd3 {[%clk 0:09:56]}  Nc6 {[%clk 0:08:40]} 11. O-O {[%clk 0:09:40]}  e5 {[%clk 0:08:40]} 12. Ng3 {[%clk 0:09:34]}  Be6 {[%clk 0:08:37]} 13. f4 {[%clk 0:09:30]}  exd4 {[%clk 0:08:38]} 14. cxd4 {[%clk 0:09:30]}  Rad8 {[%clk 0:08:39]} 15. Rb1 {[%clk 0:09:28]}  Rfe8 {[%clk 0:08:06]} 16. Nh5 {[%clk 0:09:29]}  Nxh5 {[%clk 0:07:10]} 17. Qxh5 {[%clk 0:09:28]}  f5 {[%clk 0:07:12]} 18. dxc5 {[%clk 0:09:27]}  Bf7 {[%clk 0:06:35]} 19. Qe2 {[%clk 0:09:21]}  Qd7 {[%clk 0:06:34]} 20. Bc4 {[%clk 0:08:58]}  Nd4 {[%clk 0:05:01]} 21. Qa2 {[%clk 0:08:10]}  Ne6 {[%clk 0:05:01]} 22. Qc2 {[%clk 0:07:04]}  Qe7 {[%clk 0:03:36]} 23. Qxf5 {[%clk 0:06:11]}  Rc8 {[%clk 0:03:36]} 24. Qh3 {[%clk 0:03:38]}  Nxc5 {[%clk 0:03:27]} 25. Bxf7+ {[%clk 0:03:18]}  Qxf7 {[%clk 0:03:29]} 26. Bb2 {[%clk 0:03:18]}  Ne4 {[%clk 0:03:06]} 27. Rbd1 {[%clk 0:02:53]}  Rcd8 {[%clk 0:03:00]} 28. Bd4 {[%clk 0:02:36]}  b5 {[%clk 0:02:56]} 29. f5 {[%clk 0:02:35]}  a5 {[%clk 0:02:44]} 30. Qg4 {[%clk 0:02:00]}  h5 {[%clk 0:01:33]} 31. Qh4 {[%clk 0:01:30]}  Rd5 {[%clk 0:01:29]} 32. Rf4 {[%clk 0:01:09]}  Nd6 {[%clk 0:01:24]} 33. Rdf1 {[%clk 0:01:03]}  b4 {[%clk 0:01:04]} 34. axb4 {[%clk 0:01:03]}  axb4 {[%clk 0:01:06]} 35. Qe1 {[%clk 0:00:52]}  Rxf5 {[%clk 0:00:22]} 36. Qxb4 {[%clk 0:00:44]}  Rxf4 {[%clk 0:00:23]} 37. Rxf4 {[%clk 0:00:46]}  Qg6 {[%clk 0:00:19]} 38. h3 {[%clk 0:00:39]}  Kh7 {[%clk 0:00:17]} 39. Qb3 {[%clk 0:00:34]}  Nf5 {[%clk 0:00:07]} 40. Qd3 {[%clk 0:00:29]}  Nxd4 {[%clk 0:00:08]} 41. Qxd4 {[%clk 0:00:28]}  Qe6 {[%clk 0:00:05]} 42. Rf3 {[%clk 0:00:21]}  Qe5 {[%clk 0:00:05]} 43. Qd3+ {[%clk 0:00:21]}  Qe4 {[%clk 0:00:07]} 44. Qd7 {[%clk 0:00:20]}  Qe6 {[%clk 0:00:07]} 45. Qd4 {[%clk 0:00:20]}  Qe4 {[%clk 0:00:06]} 46. Qc5 {[%clk 0:00:21]}  Qe5 {[%clk 0:00:06]} 47. Qc2+ {[%clk 0:00:20]}  Qe4 {[%clk 0:00:07]} 48. Qf2 {[%clk 0:00:21]}  Re5 {[%clk 0:00:05]} 49. Qg3 {[%clk 0:00:21]}  h4 {[%clk 0:00:04]} 50. Qf2 {[%clk 0:00:22]}  Qb1+ {[%clk 0:00:02]} 51. Kh2 {[%clk 0:00:23]}  Qe4 {[%clk 0:00:03]} 52. Rf4 {[%clk 0:00:16]}  Qxe3 {[%clk 0:00:05]} 53. Qxh4+ {[%clk 0:00:17]}  Kg8 {[%clk 0:00:06]} 54. Qd8+ {[%clk 0:00:17]}  Re8 {[%clk 0:00:07]} 55. Qd5+ {[%clk 0:00:18]}  Qe6 {[%clk 0:00:08]} 56. Qg5 {[%clk 0:00:20]}  Qe5 {[%clk 0:00:09]} 57. Qg3 {[%clk 0:00:21]}  Re6 {[%clk 0:00:07]} 58. h4 {[%clk 0:00:21]}  Rf6 {[%clk 0:00:07]} 59. Rxf6 {[%clk 0:00:20]}  Qxf6 {[%clk 0:00:09]} 60. Qb8+ {[%clk 0:00:20]}  Kh7 {[%clk 0:00:10]} 61. Qg3 {[%clk 0:00:21]}  Kh8 {[%clk 0:00:11]} 62. Qg4 {[%clk 0:00:22]}  Qe5+ {[%clk 0:00:12]} 63. Qg3 {[%clk 0:00:23]}  Qf6 {[%clk 0:00:13]} 64. Kh3 {[%clk 0:00:24]}  Qf5+ {[%clk 0:00:13]} 65. Qg4 {[%clk 0:00:26]}  Qd3+ {[%clk 0:00:14]} 66. Qf3 {[%clk 0:00:26]}  Qd7+ {[%clk 0:00:15]} 67. g4 {[%clk 0:00:26]}  Qd6 {[%clk 0:00:13]} 68. h5 {[%clk 0:00:27]}  Qe7 {[%clk 0:00:10]} 69. Qf4 {[%clk 0:00:24]}  Qd8 {[%clk 0:00:07]} 70. g5 {[%clk 0:00:23]}  Qc8+ {[%clk 0:00:05]} 71. Kh4 {[%clk 0:00:24]}  Qd8 {[%clk 0:00:06]} 72. Qe5 {[%clk 0:00:24]}  Kg8 {[%clk 0:00:05]} 73. Qe6+ {[%clk 0:00:25]}  Kh8 {[%clk 0:00:06]} 74. Qe5 {[%clk 0:00:26]}  Kg8 {[%clk 0:00:07]} 75. Kg4 {[%clk 0:00:27]}  Qd7+ {[%clk 0:00:07]} 76. Kf4 {[%clk 0:00:26]}  Qf7+ {[%clk 0:00:08]} 77. Kg4 {[%clk 0:00:27]}  Qd7+ {[%clk 0:00:09]} 78. Qf5 {[%clk 0:00:27]}  Qd4+ {[%clk 0:00:09]} 79. Qf4 {[%clk 0:00:22]}  Qd1+ {[%clk 0:00:08]} 80. Qf3 {[%clk 0:00:19]}  Qd7+ {[%clk 0:00:08]} 81. Kh4 {[%clk 0:00:20]}  Qd4+ {[%clk 0:00:09]} 82. Kh3 {[%clk 0:00:20]}  Qd7+ {[%clk 0:00:10]} 83. Kh2 {[%clk 0:00:17]}  Qd2+ {[%clk 0:00:09]} 84. Qg2 {[%clk 0:00:19]}  Qf4+ {[%clk 0:00:09]} 85. Kh3 {[%clk 0:00:20]}  Qf5+ {[%clk 0:00:10]} 86. Kh4 {[%clk 0:00:19]}  Qf4+ {[%clk 0:00:11]} 87. Kh3 {[%clk 0:00:19]}  Qf5+ {[%clk 0:00:12]} 88. Qg4 {[%clk 0:00:19]}  Qf1+ {[%clk 0:00:14]} 89. Kh2 {[%clk 0:00:21]}  Qf2+ {[%clk 0:00:15]} 90. Kh3 {[%clk 0:00:18]}  Qf1+ {[%clk 0:00:16]} 91. Kg3 {[%clk 0:00:18]}  Qg1+ {[%clk 0:00:17]} 92. Kh3 {[%clk 0:00:17]}  Qh1+ {[%clk 0:00:18]} 93. Kg3 {[%clk 0:00:19]}  Qg1+ {[%clk 0:00:20]} 94. Kh3 {[%clk 0:00:20]}  Qh1+ {[%clk 0:00:21]} 95. Kg3 {[%clk 0:00:22]}  Qg1+ {[%clk 0:00:22]} 1/2-1/2


[Site "Internet"]